[Event "The Kvibergspelen 2023"]
[Site "Kviberg Park Hotel & Conference, Krutvagen 2, Gothenburg, Sweden"]
[Date "2023.09.15"]
[Round "2.14"]
[White "Eriksson, Wilmer"]
[Black "Jacobsen, Mikkel Manosri"]
[Result "0-1"]
[TimeControl "15 minutes + 5 seconds per move from move one (Round 1 - 4) / 90 minutes + 30 seconds per move from move one (Round 5 - 8)"]
[BlackTitle "FM"]
[WhiteFideId "1768298"]
[BlackFideId "1444514"]
[WhiteElo "1939"]
[BlackElo "2313"]

1. e4 {[%clk 00:15:08]} {[%emt 00:00:01]} c5 {[%clk 00:15:09]} {[%emt
00:00:02]} 2. c3 {[%clk 00:15:11]} {[%emt 00:00:01]} e6 {[%clk 00:14:49]}
{[%emt 00:00:26]} 3. d4 {[%clk 00:15:12]} {[%emt 00:00:03]} d5 {[%clk
00:14:53]} {[%emt 00:00:01]} 4. exd5 {[%clk 00:15:15]} {[%emt 00:00:02]} exd5
{[%clk 00:14:56]} {[%emt 00:00:03]} 5. Bb5+ {[%clk 00:15:11]} {[%emt 00:00:08]}
Nc6 {[%clk 00:14:59]} {[%emt 00:00:02]} 6. Nf3 {[%clk 00:14:56]} {[%emt
00:00:20]} Bd6 {[%clk 00:15:02]} {[%emt 00:00:03]} 7. dxc5 {[%clk 00:14:57]}
{[%emt 00:00:04]} Bxc5 {[%clk 00:15:05]} {[%emt 00:00:02]} 8. O-O {[%clk
00:14:39]} {[%emt 00:00:22]} Nge7 {[%clk 00:15:07]} {[%emt 00:00:03]} 9. Nbd2
{[%clk 00:14:19]} {[%emt 00:00:25]} O-O {[%clk 00:15:09]} {[%emt 00:00:04]} 10.
Nb3 {[%clk 00:14:19]} {[%emt 00:00:04]} Bb6 {[%clk 00:15:12]} {[%emt 00:00:01]}
11. Nfd4 {[%clk 00:13:35]} {[%emt 00:00:50]} Qd6 {[%clk 00:14:59]} {[%emt
00:00:16]} 12. Be3 {[%clk 00:12:41]} {[%emt 00:01:00]} Bc7 {[%clk 00:13:57]}
{[%emt 00:01:08]} 13. g3 {[%clk 00:12:26]} {[%emt 00:00:19]} Ne5 {[%clk
00:13:46]} {[%emt 00:00:16]} 14. Be2 {[%clk 00:11:17]} {[%emt 00:01:15]} a6
{[%clk 00:13:45]} {[%emt 00:00:05]} 15. Kg2 {[%clk 00:09:49]} {[%emt 00:01:32]}
N7g6 {[%clk 00:12:54]} {[%emt 00:00:57]} 16. Nd2 {[%clk 00:07:13]} {[%emt
00:02:41]} Re8 {[%clk 00:12:40]} {[%emt 00:00:19]} 17. h4 {[%clk 00:05:14]}
{[%emt 00:02:05]} Ng4 {[%clk 00:09:49]} {[%emt 00:02:56]} 18. Bxg4 {[%clk
00:04:31]} {[%emt 00:00:48]} Rxe3 {[%clk 00:09:47]} {[%emt 00:00:07]} 19. Bf3
{[%clk 00:03:10]} {[%emt 00:01:26]} Nxh4+ {[%clk 00:09:36]} {[%emt 00:00:16]}
20. Kg1 {[%clk 00:02:59]} {[%emt 00:00:15]} Nxf3+ {[%clk 00:08:43]} {[%emt
00:00:59]} 21. N2xf3 {[%clk 00:03:02]} {[%emt 00:00:02]} Bh3 {[%clk 00:06:52]}
{[%emt 00:01:54]} 22. Nf5 {[%clk 00:01:38]} {[%emt 00:01:30]} Bxf5 {[%clk
00:05:59]} {[%emt 00:00:59]} 23. fxe3 {[%clk 00:01:41]} {[%emt 00:00:02]} Qxg3+
{[%clk 00:05:59]} {[%emt 00:00:04]} 24. Kh1 {[%clk 00:01:45]} Re8 {[%clk
00:04:32]} {[%emt 00:01:32]} 25. Qe2 {[%clk 00:01:17]} {[%emt 00:00:33]} Qh3+
{[%clk 00:04:07]} {[%emt 00:00:29]} 26. Kg1 {[%clk 00:00:45]} {[%emt 00:00:38]}
Re6 {[%clk 00:04:03]} {[%emt 00:00:09]} 27. Rf2 {[%clk 00:00:25]} {[%emt
00:00:26]} Be4 {[%clk 00:03:52]} {[%emt 00:00:15]} 28. Raf1 {[%clk 00:00:08]}
{[%emt 00:00:23]} Rg6+ {[%clk 00:02:41]} {[%emt 00:01:17]} 29. Rg2 {[%clk
00:00:12]} Bh2+ {[%clk 00:02:42]} {[%emt 00:00:04]} 30. Nxh2 {[%clk 00:00:08]}
{[%emt 00:00:08]} Rxg2+ {[%clk 00:02:44]} {[%emt 00:00:04]} 0-1

[Event "The Kvibergspelen 2023"]
[Site "Kviberg Park Hotel & Conference, Krutvagen 2, Gothenburg, Sweden"]
[Date "2023.09.15"]
[Round "2.15"]
[White "Poley, Vladimir"]
[Black "Schriever-Abeln, Marius"]
[Result "1-0"]
[TimeControl "15 minutes + 5 seconds per move from move one (Round 1 - 4) / 90 minutes + 30 seconds per move from move one (Round 5 - 8)"]
[WhiteTitle "IM"]
[WhiteFideId "13500090"]
[BlackFideId "1752650"]
[WhiteElo "2284"]
[BlackElo "1936"]

1. Nf3 {[%clk 00:15:09]} d5 {[%clk 00:15:09]} 2. g3 {[%clk 00:15:13]} {[%emt
00:00:01]} Nf6 {[%emt 00:00:03]} 3. Bg2 {[%emt 00:00:04]} e6 {[%clk 00:15:12]}
{[%emt 00:00:01]} 4. O-O {[%clk 00:15:20]} c5 {[%clk 00:15:14]} {[%emt
00:00:06]} 5. b3 {[%clk 00:15:24]} Nc6 {[%clk 00:15:13]} {[%emt 00:00:04]} 6.
Bb2 {[%clk 00:15:28]} Be7 {[%clk 00:15:12]} {[%emt 00:00:06]} 7. e3 {[%clk
00:15:32]} {[%emt 00:00:03]} O-O {[%clk 00:15:08]} {[%emt 00:00:07]} 8. d4
{[%clk 00:15:32]} {[%emt 00:00:05]} b6 {[%clk 00:15:06]} {[%emt 00:00:07]} 9.
Nbd2 {[%clk 00:15:34]} {[%emt 00:00:03]} Bb7 {[%clk 00:14:56]} {[%emt
00:00:16]} 10. Re1 {[%clk 00:15:26]} {[%emt 00:00:13]} Qc7 {[%clk 00:14:40]}
{[%emt 00:00:20]} 11. c4 {[%clk 00:15:22]} {[%emt 00:00:10]} Rfd8 {[%clk
00:14:33]} {[%emt 00:00:12]} 12. dxc5 {[%clk 00:15:13]} {[%emt 00:00:15]} bxc5
{[%clk 00:14:18]} {[%emt 00:00:19]} 13. cxd5 {[%clk 00:15:12]} {[%emt
00:00:07]} exd5 {[%clk 00:14:01]} {[%emt 00:00:21]} 14. a3 {[%clk 00:15:14]}
{[%emt 00:00:04]} Rab8 {[%clk 00:13:23]} {[%emt 00:00:43]} 15. Qc2 {[%clk
00:15:10]} {[%emt 00:00:07]} Qb6 {[%clk 00:12:35]} {[%emt 00:00:53]} 16. Ng5
{[%clk 00:14:52]} {[%emt 00:00:24]} h6 {[%clk 00:10:53]} {[%emt 00:01:49]} 17.
Nh3 {[%clk 00:13:15]} {[%emt 00:01:40]} Na5 {[%clk 00:09:57]} {[%emt 00:01:01]}
18. Nf4 {[%clk 00:12:49]} {[%emt 00:00:31]} Bc6 {[%clk 00:08:37]} {[%emt
00:01:25]} 19. Rab1 {[%clk 00:12:41]} {[%emt 00:00:13]} Rb7 {[%clk 00:07:11]}
{[%emt 00:01:31]} 20. Rec1 {[%clk 00:11:49]} {[%emt 00:00:57]} Ne4 {[%clk
00:05:08]} {[%emt 00:02:07]} 21. Nxe4 {[%clk 00:11:02]} {[%emt 00:00:52]} dxe4
{[%clk 00:05:11]} {[%emt 00:00:03]} 22. b4 {[%clk 00:11:02]} {[%emt 00:00:05]}
cxb4 {[%clk 00:03:40]} {[%emt 00:01:35]} 23. axb4 {[%clk 00:10:32]} {[%emt
00:00:35]} Qxb4 {[%clk 00:02:05]} {[%emt 00:01:40]} 24. Bxg7 {[%clk 00:09:38]}
{[%emt 00:00:59]} Qd6 {[%clk 00:01:43]} {[%emt 00:00:28]} 25. Bd4 {[%clk
00:08:51]} {[%emt 00:00:51]} Rdb8 {[%clk 00:01:21]} {[%emt 00:00:28]} 26. Rxb7
{[%clk 00:08:47]} {[%emt 00:00:09]} Rxb7 {[%clk 00:01:16]} {[%emt 00:00:11]} 27.
Bxe4 {[%clk 00:08:32]} {[%emt 00:00:19]} Bxe4 {[%clk 00:00:53]} {[%emt
00:00:28]} 28. Qxe4 {[%clk 00:08:35]} {[%emt 00:00:02]} Rc7 {[%clk 00:00:43]}
{[%emt 00:00:15]} 29. Rxc7 {[%clk 00:08:24]} {[%emt 00:00:16]} Qxc7 {[%clk
00:00:47]} {[%emt 00:00:01]} 30. Nd5 {[%clk 00:08:23]} {[%emt 00:00:05]} Qc1+
{[%clk 00:00:31]} {[%emt 00:00:21]} 31. Kg2 {[%clk 00:08:27]} {[%emt 00:00:01]}
Bf8 {[%clk 00:00:19]} {[%emt 00:00:17]} 32. Nf6+ {[%clk 00:08:24]} {[%emt
00:00:08]} 1-0

[Event "The Kvibergspelen 2023"]
[Site "Kviberg Park Hotel & Conference, Krutvagen 2, Gothenburg, Sweden"]
[Date "2023.09.15"]
[Round "2.16"]
[White "Lundberg, Roland"]
[Black "Falkevall, Axel"]
[Result "0-1"]
[TimeControl "15 minutes + 5 seconds per move from move one (Round 1 - 4) / 90 minutes + 30 seconds per move from move one (Round 5 - 8)"]
[BlackTitle "FM"]
[WhiteFideId "1710656"]
[BlackFideId "1735560"]
[WhiteElo "1930"]
[BlackElo "2276"]

1. Nf3 {[%clk 00:15:07]} {[%emt 00:00:02]} Nf6 {[%clk 00:15:08]} {[%emt
00:00:03]} 2. c4 {[%clk 00:15:11]} g6 {[%clk 00:15:10]} {[%emt 00:00:04]} 3. g3
{[%clk 00:15:15]} {[%emt 00:00:02]} Bg7 {[%clk 00:15:14]} {[%emt 00:00:01]} 4.
Bg2 {[%clk 00:15:19]} {[%emt 00:00:01]} O-O {[%clk 00:15:13]} {[%emt 00:00:05]}
5. O-O {[%clk 00:15:19]} {[%emt 00:00:05]} c5 {[%clk 00:15:09]} {[%emt
00:00:09]} 6. Nc3 {[%clk 00:15:19]} {[%emt 00:00:05]} d6 {[%clk 00:15:09]}
{[%emt 00:00:03]} 7. e4 {[%clk 00:14:56]} {[%emt 00:00:29]} Nc6 {[%clk
00:15:10]} {[%emt 00:00:03]} 8. d3 {[%clk 00:14:58]} {[%emt 00:00:03]} Rb8
{[%clk 00:15:11]} {[%emt 00:00:05]} 9. Rb1 {[%clk 00:14:56]} {[%emt 00:00:07]}
a6 {[%clk 00:15:01]} {[%emt 00:00:16]} 10. Bg5 {[%clk 00:14:46]} {[%emt
00:00:13]} b5 {[%clk 00:14:29]} {[%emt 00:00:37]} 11. cxb5 {[%clk 00:14:34]}
{[%emt 00:00:18]} axb5 {[%clk 00:14:32]} {[%emt 00:00:02]} 12. Qd2 {[%clk
00:14:38]} b4 {[%clk 00:14:05]} {[%emt 00:00:33]} 13. Nd5 {[%clk 00:14:12]}
{[%emt 00:00:31]} e6 {[%clk 00:12:14]} {[%emt 00:01:54]} 14. Ne3 {[%clk
00:13:52]} {[%emt 00:00:26]} e5 {[%clk 00:10:12]} {[%emt 00:02:06]} 15. Ne1
{[%clk 00:13:54]} {[%emt 00:00:04]} h6 {[%clk 00:09:32]} {[%emt 00:00:45]} 16.
Bxf6 {[%clk 00:13:57]} {[%emt 00:00:02]} Bxf6 {[%clk 00:09:35]} {[%emt
00:00:02]} 17. f4 {[%clk 00:12:24]} {[%emt 00:01:38]} exf4 {[%clk 00:08:54]}
{[%emt 00:00:45]} 18. gxf4 {[%clk 00:12:26]} {[%emt 00:00:04]} Nd4 {[%clk
00:07:08]} {[%emt 00:01:51]} 19. Kh1 {[%clk 00:12:22]} {[%emt 00:00:10]} Bg7
{[%clk 00:06:38]} {[%emt 00:00:34]} 20. Nf3 {[%clk 00:11:22]} {[%emt 00:01:05]}
Be6 {[%clk 00:03:50]} {[%emt 00:02:52]} 21. Nxd4 cxd4 {[%clk 00:03:54]} 22. Nc4
{[%clk 00:09:51]} d5 {[%clk 00:03:32]} {[%emt 00:00:27]} 23. Ne5 {[%clk
00:09:50]} {[%emt 00:00:06]} dxe4 {[%clk 00:02:36]} {[%emt 00:01:01]} 24. dxe4
{[%clk 00:09:48]} {[%emt 00:00:07]} Bxe5 {[%clk 00:02:24]} {[%emt 00:00:17]} 25.
fxe5 {[%clk 00:09:49]} {[%emt 00:00:03]} Kh7 {[%clk 00:02:23]} {[%emt
00:00:07]} 26. b3 {[%clk 00:09:51]} {[%emt 00:00:02]} Rb5 {[%clk 00:02:17]}
{[%emt 00:00:12]} 27. Rbd1 {[%clk 00:09:33]} {[%emt 00:00:24]} Rxe5 {[%clk
00:02:08]} {[%emt 00:00:13]} 28. Qxd4 {[%clk 00:09:37]} {[%emt 00:00:01]} Qxd4
{[%clk 00:02:10]} {[%emt 00:00:03]} 29. Rxd4 {[%clk 00:09:41]} {[%emt
00:00:02]} Rb8 {[%clk 00:02:11]} {[%emt 00:00:03]} 30. Rc1 {[%clk 00:09:37]}
{[%emt 00:00:09]} Ra5 {[%clk 00:02:10]} {[%emt 00:00:06]} 31. Rc2 {[%clk
00:09:38]} {[%emt 00:00:03]} Bxb3 {[%clk 00:01:50]} {[%emt 00:00:25]} 32. axb3
{[%clk 00:09:14]} {[%emt 00:00:29]} Ra1+ {[%clk 00:01:54]} 33. Bf1 {[%clk
00:09:19]} {[%emt 00:00:01]} Rxf1+ {[%clk 00:01:58]} {[%emt 00:00:01]} 34. Kg2
{[%clk 00:09:23]} Rb1 {[%clk 00:01:57]} {[%emt 00:00:07]} 35. Rc7 {[%clk
00:09:27]} {[%emt 00:00:01]} Rb2+ {[%clk 00:01:58]} {[%emt 00:00:04]} 36. Kg1
{[%clk 00:08:37]} {[%emt 00:00:56]} Kg8 {[%clk 00:01:58]} {[%emt 00:00:03]} 37.
Rdd7 {[%clk 00:08:31]} {[%emt 00:00:12]} Ra8 {[%clk 00:01:50]} {[%emt
00:00:13]} 38. Rxf7 {[%clk 00:08:13]} {[%emt 00:00:23]} Ra1+ {[%clk 00:01:53]}
{[%emt 00:00:02]} 39. Rf1 {[%clk 00:08:17]} Rxf1+ {[%clk 00:01:57]} {[%emt
00:00:02]} 40. Kxf1 {[%clk 00:08:22]} Rxb3 {[%clk 00:02:00]} {[%emt 00:00:03]}
41. h4 {[%clk 00:08:14]} {[%emt 00:00:12]} Rh3 {[%clk 00:01:45]} {[%emt
00:00:20]} 42. Rb7 {[%clk 00:08:09]} {[%emt 00:00:10]} b3 {[%clk 00:01:48]}
{[%emt 00:00:02]} 43. Kg2 {[%clk 00:06:22]} {[%emt 00:01:52]} Rxh4 {[%emt
00:00:04]} 44. Kf3 Rh3+ {[%clk 00:01:34]} {[%emt 00:00:21]} 45. Kf4 {[%clk
00:06:30]} {[%emt 00:00:01]} Kf8 {[%clk 00:01:13]} {[%emt 00:00:25]} 46. Ke5
{[%clk 00:05:13]} {[%emt 00:01:22]} Rf3 {[%clk 00:01:16]} {[%emt 00:00:03]} 47.
Ke6 {[%clk 00:05:07]} {[%emt 00:00:11]} h5 {[%clk 00:01:14]} {[%emt 00:00:07]}
48. e5 {[%clk 00:04:50]} {[%emt 00:00:22]} h4 {[%clk 00:01:15]} {[%emt
00:00:03]} 49. Rb8+ {[%clk 00:04:12]} {[%emt 00:00:44]} Kg7 {[%clk 00:01:18]}
{[%emt 00:00:01]} 50. Rb7+ {[%clk 00:03:58]} {[%emt 00:00:19]} Kh6 {[%clk
00:01:21]} {[%emt 00:00:02]} 51. Rb8 {[%clk 00:04:02]} h3 {[%clk 00:01:16]}
{[%emt 00:00:10]} 52. Ke7 {[%clk 00:04:07]} Kg7 {[%clk 00:01:09]} {[%emt
00:00:13]} 53. Rb7 {[%clk 00:03:55]} {[%emt 00:00:16]} Rf7+ {[%clk 00:01:09]}
{[%emt 00:00:05]} 0-1

[Event "The Kvibergspelen 2023"]
[Site "Kviberg Park Hotel & Conference, Krutvagen 2, Gothenburg, Sweden"]
[Date "2023.09.15"]
[Round "2.17"]
[White "Nilsson, Oliver"]
[Black "Cederstam, Carl"]
[Result "0-1"]
[TimeControl "15 minutes + 5 seconds per move from move one (Round 1 - 4) / 90 minutes + 30 seconds per move from move one (Round 5 - 8)"]
[BlackTitle "FM"]
[WhiteFideId "1730177"]
[BlackFideId "1713329"]
[WhiteElo "1924"]
[BlackElo "2232"]

1. e4 {[%clk 00:15:08]} {[%emt 00:00:02]} c5 {[%clk 00:14:36]} {[%emt
00:00:34]} 2. Nc3 {[%clk 00:15:11]} {[%emt 00:00:01]} Nc6 {[%clk 00:14:19]}
{[%emt 00:00:22]} 3. Bb5 {[%clk 00:15:14]} {[%emt 00:00:02]} Nd4 {[%clk
00:13:59]} {[%emt 00:00:25]} 4. Nf3 {[%clk 00:15:17]} {[%emt 00:00:04]} g6
{[%clk 00:13:45]} {[%emt 00:00:17]} 5. Bc4 {[%clk 00:15:20]} {[%emt 00:00:03]}
Bg7 {[%clk 00:12:30]} {[%emt 00:01:19]} 6. Nxd4 {[%clk 00:15:23]} {[%emt
00:00:03]} cxd4 {[%clk 00:12:27]} {[%emt 00:00:08]} 7. Qf3 {[%clk 00:15:26]}
{[%emt 00:00:02]} Nf6 {[%clk 00:10:36]} {[%emt 00:01:55]} 8. Nb5 {[%clk
00:12:33]} {[%emt 00:02:59]} O-O {[%clk 00:10:26]} {[%emt 00:00:15]} 9. Nxd4
{[%clk 00:12:23]} {[%emt 00:00:15]} d5 {[%clk 00:09:26]} {[%emt 00:01:05]} 10.
exd5 {[%clk 00:12:05]} {[%emt 00:00:24]} Ng4 {[%clk 00:08:42]} {[%emt
00:00:48]} 11. Qe4 {[%clk 00:09:49]} {[%emt 00:02:21]} Qb6 {[%clk 00:07:16]}
{[%emt 00:01:30]} 12. c3 {[%clk 00:09:27]} {[%emt 00:00:27]} Bf5 {[%clk
00:05:36]} {[%emt 00:01:46]} 13. Qe2 {[%clk 00:08:10]} {[%emt 00:01:22]} Bxd4
{[%clk 00:04:47]} {[%emt 00:00:54]} 14. cxd4 {[%clk 00:08:13]} {[%emt
00:00:01]} Qxd4 {[%clk 00:04:23]} {[%emt 00:00:29]} 15. O-O {[%clk 00:06:37]}
{[%emt 00:01:41]} a6 {[%clk 00:01:50]} {[%emt 00:02:39]} 16. d3 {[%clk
00:05:55]} {[%emt 00:00:47]} b5 {[%clk 00:01:43]} {[%emt 00:00:12]} 17. Be3
{[%clk 00:05:56]} {[%emt 00:00:04]} Qe5 {[%clk 00:01:45]} {[%emt 00:00:03]} 18.
g3 {[%clk 00:03:54]} {[%emt 00:02:06]} bxc4 {[%clk 00:01:49]} {[%emt 00:00:02]}
19. dxc4 {[%clk 00:03:56]} {[%emt 00:00:03]} Qe4 {[%clk 00:01:48]} {[%emt
00:00:05]} 20. b3 {[%clk 00:03:16]} {[%emt 00:00:45]} h5 {[%clk 00:01:29]}
{[%emt 00:00:25]} 21. Rfd1 {[%clk 00:02:17]} {[%emt 00:01:03]} Ne5 {[%clk
00:01:25]} {[%emt 00:00:10]} 22. f4 {[%clk 00:02:07]} {[%emt 00:00:14]} Nf3+
{[%clk 00:01:10]} {[%emt 00:00:20]} 23. Kf2 {[%clk 00:02:01]} {[%emt 00:00:12]}
Nxh2 {[%clk 00:01:09]} {[%emt 00:00:06]} 24. Kg1 {[%clk 00:01:46]} {[%emt
00:00:20]} Nf3+ {[%clk 00:00:46]} {[%emt 00:00:28]} 25. Kf2 {[%clk 00:01:48]}
{[%emt 00:00:03]} Bg4 {[%clk 00:00:49]} {[%emt 00:00:02]} 26. Qd3 {[%clk
00:01:31]} {[%emt 00:00:22]} Ng5 {[%clk 00:00:26]} {[%emt 00:00:28]} 27. fxg5
{[%clk 00:01:13]} {[%emt 00:00:23]} Qf3+ {[%clk 00:00:29]} {[%emt 00:00:02]} 28.
Ke1 {[%clk 00:01:16]} {[%emt 00:00:01]} Qxg3+ {[%clk 00:00:19]} {[%emt
00:00:16]} 29. Bf2 {[%clk 00:01:18]} {[%emt 00:00:02]} Qe5+ {[%clk 00:00:23]}
{[%emt 00:00:02]} 30. Kf1 {[%clk 00:01:08]} {[%emt 00:00:15]} Bxd1 {[%clk
00:00:23]} {[%emt 00:00:05]} 31. Rxd1 {[%clk 00:01:12]} {[%emt 00:00:01]} Qxg5
{[%clk 00:00:24]} {[%emt 00:00:05]} 32. Re1 {[%clk 00:00:49]} {[%emt 00:00:28]}
a5 {[%clk 00:00:21]} {[%emt 00:00:07]} 33. Re3 {[%clk 00:00:49]} {[%emt
00:00:05]} Ra6 {[%clk 00:00:23]} {[%emt 00:00:03]} 34. Rg3 {[%clk 00:00:50]}
{[%emt 00:00:04]} Qc1+ {[%clk 00:00:23]} {[%emt 00:00:05]} 35. Kg2 {[%clk
00:00:53]} {[%emt 00:00:02]} Rf6 {[%clk 00:00:25]} {[%emt 00:00:03]} 36. Bd4
{[%clk 00:00:52]} {[%emt 00:00:06]} Kg7 {[%clk 00:00:15]} {[%emt 00:00:15]} 37.
Bxf6+ {[%clk 00:00:42]} {[%emt 00:00:14]} exf6 {[%clk 00:00:18]} {[%emt
00:00:02]} 38. d6 {[%clk 00:00:32]} {[%emt 00:00:15]} Rd8 {[%clk 00:00:08]}
{[%emt 00:00:15]} 39. Re3 {[%clk 00:00:09]} {[%emt 00:00:28]} Qa3 {[%clk
00:00:10]} {[%emt 00:00:04]} 40. d7 {[%clk 00:00:12]} {[%emt 00:00:02]} Qc5
{[%clk 00:00:12]} {[%emt 00:00:02]} 41. Re8 {[%clk 00:00:09]} {[%emt 00:00:08]}
Qc6+ {[%clk 00:00:14]} {[%emt 00:00:03]} 42. Kh2 {[%clk 00:00:09]} {[%emt
00:00:06]} Rxd7 {[%clk 00:00:18]} {[%emt 00:00:02]} 43. Qe3 {[%clk 00:00:08]}
{[%emt 00:00:04]} Qd6+ {[%clk 00:00:18]} {[%emt 00:00:06]} 44. Kh1 {[%clk
00:00:10]} {[%emt 00:00:01]} Qd1+ {[%clk 00:00:22]} {[%emt 00:00:03]} 45. Qe1
{[%clk 00:00:09]} {[%emt 00:00:06]} Qf3+ {[%clk 00:00:25]} {[%emt 00:00:02]} 46.
Kg1 {[%clk 00:00:10]} {[%emt 00:00:03]} Rd1 {[%clk 00:00:29]} {[%emt 00:00:02]}
0-1

[Event "The Kvibergspelen 2023"]
[Site "Kviberg Park Hotel & Conference, Krutvagen 2, Gothenburg, Sweden"]
[Date "2023.09.15"]
[Round "2.18"]
[White "Hansen, Lars"]
[Black "Ostensson, Julia"]
[Result "1-0"]
[TimeControl "15 minutes + 5 seconds per move from move one (Round 1 - 4) / 90 minutes + 30 seconds per move from move one (Round 5 - 8)"]
[WhiteFideId "1402528"]
[BlackFideId "1747703"]
[WhiteElo "2188"]
[BlackElo "1915"]

1. e4 {[%clk 00:15:07]} {[%emt 00:00:03]} d6 {[%clk 00:14:55]} {[%emt
00:00:15]} 2. d4 {[%clk 00:15:09]} {[%emt 00:00:03]} Nf6 {[%clk 00:14:59]}
{[%emt 00:00:01]} 3. Nc3 {[%clk 00:15:13]} {[%emt 00:00:01]} e5 {[%clk
00:15:02]} {[%emt 00:00:03]} 4. dxe5 {[%clk 00:15:00]} {[%emt 00:00:18]} dxe5
{[%clk 00:15:05]} {[%emt 00:00:03]} 5. Qxd8+ {[%clk 00:15:02]} {[%emt
00:00:01]} Kxd8 {[%clk 00:15:08]} {[%emt 00:00:02]} 6. Bc4 {[%clk 00:15:06]}
Ke8 {[%clk 00:12:26]} {[%emt 00:02:47]} 7. Bg5 {[%clk 00:15:09]} {[%emt
00:00:02]} Bb4 {[%clk 00:12:09]} {[%emt 00:00:22]} 8. Nge2 {[%clk 00:14:15]}
{[%emt 00:00:59]} Nxe4 {[%clk 00:10:35]} {[%emt 00:01:39]} 9. Bh4 {[%clk
00:14:18]} {[%emt 00:00:01]} Nd6 {[%clk 00:09:35]} {[%emt 00:01:05]} 10. Bb3
{[%clk 00:14:18]} {[%emt 00:00:06]} Nc6 {[%clk 00:08:57]} {[%emt 00:00:43]} 11.
O-O-O {[%clk 00:14:19]} {[%emt 00:00:04]} Bf5 {[%clk 00:02:12]} {[%emt
00:06:49]} 12. Nd5 {[%clk 00:14:06]} {[%emt 00:00:19]} Ba5 {[%clk 00:02:16]}
{[%emt 00:00:01]} 13. c3 {[%clk 00:12:24]} {[%emt 00:01:47]} f6 {[%clk
00:01:29]} {[%emt 00:00:52]} 14. Rhe1 {[%clk 00:11:39]} {[%emt 00:00:50]} Kd7
{[%clk 00:00:23]} {[%emt 00:01:10]} 15. Ng3 {[%clk 00:05:49]} {[%emt 00:05:56]}
Be6 {[%clk 00:00:27]} {[%emt 00:00:02]} 16. f4 {[%clk 00:05:39]} {[%emt
00:00:15]} Rad8 {[%clk 00:00:14]} {[%emt 00:00:17]} 17. Ne4 {[%clk 00:04:45]}
{[%emt 00:00:58]} Kc8 {[%clk 00:00:09]} {[%emt 00:00:11]} 18. Ne7+ {[%clk
00:04:15]} {[%emt 00:00:36]} Nxe7 {[%clk 00:00:08]} {[%emt 00:00:06]} 19. Bxe6+
{[%clk 00:04:16]} {[%emt 00:00:04]} Kb8 {[%clk 00:00:12]} 20. fxe5 {[%clk
00:03:41]} {[%emt 00:00:40]} Nxe4 {[%clk 00:00:16]} {[%emt 00:00:01]} 21. Rxe4
{[%clk 00:03:31]} {[%emt 00:00:16]} Rxd1+ {[%clk 00:00:20]} {[%emt 00:00:01]}
22. Kxd1 {[%clk 00:03:35]} Ng6 {[%clk 00:00:15]} {[%emt 00:00:11]} 23. exf6
{[%clk 00:03:22]} {[%emt 00:00:18]} gxf6 {[%clk 00:00:17]} {[%emt 00:00:03]} 24.
Bxf6 {[%clk 00:03:18]} {[%emt 00:00:09]} Rf8 {[%clk 00:00:22]} 25. Bg5 {[%clk
00:03:02]} {[%emt 00:00:20]} a6 {[%clk 00:00:14]} {[%emt 00:00:15]} 26. Ke2
{[%clk 00:02:49]} {[%emt 00:00:17]} Bb6 {[%clk 00:00:18]} {[%emt 00:00:01]} 27.
Be3 {[%clk 00:02:11]} {[%emt 00:00:43]} Bxe3 {[%clk 00:00:19]} {[%emt
00:00:05]} 28. Kxe3 {[%clk 00:02:14]} Rf1 {[%clk 00:00:07]} {[%emt 00:00:17]}
29. Bg8 {[%clk 00:00:40]} {[%emt 00:01:39]} Re1+ {[%clk 00:00:08]} {[%emt
00:00:05]} 30. Kd3 {[%clk 00:00:19]} {[%emt 00:00:24]} Rd1+ {[%clk 00:00:10]}
{[%emt 00:00:04]} 31. Kc2 {[%clk 00:00:19]} {[%emt 00:00:06]} Rg1 {[%clk
00:00:08]} {[%emt 00:00:06]} 32. Re8+ {[%clk 00:00:17]} {[%emt 00:00:08]} Ka7
{[%clk 00:00:12]} 33. Re2 {[%clk 00:00:20]} {[%emt 00:00:01]} Nf4 {[%clk
00:00:15]} {[%emt 00:00:02]} 34. Rf2 {[%clk 00:00:18]} {[%emt 00:00:06]} Nxg2
{[%clk 00:00:13]} {[%emt 00:00:09]} 35. Bxh7 {[%clk 00:00:19]} {[%emt
00:00:04]} Ne1+ {[%clk 00:00:13]} {[%emt 00:00:06]} 36. Kb3 {[%clk 00:00:16]}
{[%emt 00:00:07]} Ng2 {[%clk 00:00:08]} {[%emt 00:00:10]} 37. Be4 {[%clk
00:00:14]} {[%emt 00:00:06]} Nh4 {[%clk 00:00:08]} {[%emt 00:00:06]} 38. Rf7
{[%clk 00:00:14]} {[%emt 00:00:06]} Kb6 {[%clk 00:00:12]} {[%emt 00:00:01]} 39.
Rf4 {[%clk 00:00:13]} {[%emt 00:00:05]} Ng2 {[%clk 00:00:07]} {[%emt 00:00:09]}
40. Rg4 {[%clk 00:00:14]} {[%emt 00:00:05]} Rh1 {[%clk 00:00:08]} {[%emt
00:00:04]} 41. Rxg2 {[%clk 00:00:17]} {[%emt 00:00:03]} 1-0